[Event "Titled Tuesday Blitz December 7 2021"]
[White "Dolzhykova, Kateryna"]
[Black "Koellner, Ruben Gideon"]
[WhiteFideId "14113414"]
[BlackFideId "12993093"]
[WhiteElo "2094"]
[BlackElo "2568"]
[Result "1/2-1/2"]
[Round "10"]
[TimeControl "180+1"]
[Date "2021.12.07"]
[WhiteClock "0:00:17"]
[BlackClock "0:01:04"]

1. Nf3 {[%clk 0:03:00]}  d6 {[%clk 0:03:00]} 2. d4 {[%clk 0:02:58]}  Nf6 {[%clk 0:02:59]} 3. g3 {[%clk 0:02:54]}  g6 {[%clk 0:02:59]} 4. Bg2 {[%clk 0:02:54]}  Bg7 {[%clk 0:02:59]} 5. O-O {[%clk 0:02:55]}  O-O {[%clk 0:02:59]} 6. c4 {[%clk 0:02:55]}  Nbd7 {[%clk 0:02:59]} 7. Nc3 {[%clk 0:02:54]}  Re8 {[%clk 0:03:00]} 8. e4 {[%clk 0:02:44]}  e5 {[%clk 0:02:59]} 9. d5 {[%clk 0:02:44]}  Nc5 {[%clk 0:02:59]} 10. Qc2 {[%clk 0:02:41]}  a5 {[%clk 0:03:00]} 11. Rb1 {[%clk 0:02:33]}  b6 {[%clk 0:03:01]} 12. b3 {[%clk 0:02:31]}  h6 {[%clk 0:03:00]} 13. a3 {[%clk 0:02:18]}  Bd7 {[%clk 0:03:00]} 14. b4 {[%clk 0:02:16]}  axb4 {[%clk 0:03:01]} 15. axb4 {[%clk 0:02:16]}  Na4 {[%clk 0:03:02]} 16. Bd2 {[%clk 0:02:01]}  Nxc3 {[%clk 0:03:01]} 17. Bxc3 {[%clk 0:01:58]}  Ra4 {[%clk 0:02:56]} 18. Ra1 {[%clk 0:01:55]}  Qa8 {[%clk 0:02:45]} 19. Nd2 {[%clk 0:01:54]}  h5 {[%clk 0:02:31]} 20. Qb2 {[%clk 0:01:34]}  Rxa1 {[%clk 0:02:14]} 21. Rxa1 {[%clk 0:01:33]}  Qb7 {[%clk 0:02:15]} 22. Nb3 {[%clk 0:01:32]}  Ra8 {[%clk 0:02:14]} 23. Rxa8+ {[%clk 0:01:28]}  Qxa8 {[%clk 0:02:15]} 24. c5 {[%clk 0:01:27]}  bxc5 {[%clk 0:02:09]} 25. bxc5 {[%clk 0:01:27]}  Bb5 {[%clk 0:01:58]} 26. cxd6 {[%clk 0:01:12]}  cxd6 {[%clk 0:01:57]} 27. Bb4 {[%clk 0:01:12]}  Bf8 {[%clk 0:01:52]} 28. Qa3 {[%clk 0:00:46]}  Qxa3 {[%clk 0:01:34]} 29. Bxa3 {[%clk 0:00:46]}  Bd3 {[%clk 0:01:33]} 30. Nd2 {[%clk 0:00:46]}  Bh6 {[%clk 0:01:22]} 31. Nf1 {[%clk 0:00:34]}  Nxe4 {[%clk 0:01:20]} 32. Bxe4 {[%clk 0:00:34]}  Bxe4 {[%clk 0:01:21]} 33. Bxd6 {[%clk 0:00:34]}  f6 {[%clk 0:01:10]} 34. Ne3 {[%clk 0:00:28]}  Bxe3 {[%clk 0:01:10]} 35. fxe3 {[%clk 0:00:28]}  Bxd5 {[%clk 0:01:11]} 36. h4 {[%clk 0:00:26]}  Kf7 {[%clk 0:01:11]} 37. Kf2 {[%clk 0:00:26]}  Ke6 {[%clk 0:01:11]} 38. Ba3 {[%clk 0:00:26]}  Kf5 {[%clk 0:01:11]} 39. Bb2 {[%clk 0:00:25]}  Ke4 {[%clk 0:01:10]} 40. Ba1 {[%clk 0:00:21]}  Be6 {[%clk 0:01:09]} 41. Bb2 {[%clk 0:00:21]}  Kf5 {[%clk 0:01:08]} 42. Ba1 {[%clk 0:00:21]}  g5 {[%clk 0:01:07]} 43. hxg5 {[%clk 0:00:16]}  fxg5 {[%clk 0:01:05]} 44. Bc3 {[%clk 0:00:16]}  Bd5 {[%clk 0:01:05]} 45. Kg1 {[%clk 0:00:13]}  Ke4 {[%clk 0:01:01]} 46. Kh2 {[%clk 0:00:13]}  Be6 {[%clk 0:01:01]} 47. Bb2 {[%clk 0:00:12]}  Bg4 {[%clk 0:00:57]} 48. Ba1 {[%clk 0:00:13]}  Bf3 {[%clk 0:00:57]} 49. Bb2 {[%clk 0:00:13]}  g4 {[%clk 0:00:54]} 50. Ba1 {[%clk 0:00:13]}  Kd5 {[%clk 0:00:54]} 51. Bb2 {[%clk 0:00:13]}  e4 {[%clk 0:00:54]} 52. Bd4 {[%clk 0:00:12]}  Kc4 {[%clk 0:00:55]} 53. Kg1 {[%clk 0:00:12]}  Kd3 {[%clk 0:00:56]} 54. Kf2 {[%clk 0:00:13]}  Kd2 {[%clk 0:00:56]} 55. Be5 {[%clk 0:00:13]}  Kd3 {[%clk 0:00:56]} 56. Bf4 {[%clk 0:00:13]}  Kc4 {[%clk 0:00:57]} 57. Bg5 {[%clk 0:00:13]}  Kd5 {[%clk 0:00:58]} 58. Bh4 {[%clk 0:00:14]}  Ke6 {[%clk 0:00:59]} 59. Bg5 {[%clk 0:00:14]}  Kf5 {[%clk 0:01:00]} 60. Bh4 {[%clk 0:00:15]}  Kg6 {[%clk 0:01:01]} 61. Bd8 {[%clk 0:00:15]}  Kf7 {[%clk 0:01:02]} 62. Bh4 {[%clk 0:00:16]}  Ke6 {[%clk 0:01:03]} 63. Bg5 {[%clk 0:00:16]}  Kd7 {[%clk 0:01:04]} 64. Bh4 {[%clk 0:00:17]}  Kc6 {[%clk 0:01:04]} 65. Bg5 {[%clk 0:00:17]}  Kd5 {[%clk 0:01:05]} 66. Bh4 {[%clk 0:00:18]}  Kc5 {[%clk 0:01:05]} 67. Ke1 {[%clk 0:00:18]}  Kc4 {[%clk 0:01:06]} 68. Kd2 {[%clk 0:00:18]}  Kd5 {[%clk 0:00:56]} 69. Kc3 {[%clk 0:00:18]}  Kc5 {[%clk 0:00:57]} 70. Be7+ {[%clk 0:00:17]}  Kc6 {[%clk 0:00:58]} 71. Kd4 {[%clk 0:00:17]}  Kd7 {[%clk 0:00:55]} 72. Bh4 {[%clk 0:00:16]}  Ke6 {[%clk 0:00:55]} 73. Kc5 {[%clk 0:00:16]}  Kd7 {[%clk 0:00:53]} 74. Kd5 {[%clk 0:00:16]}  Ke8 {[%clk 0:00:53]} 75. Ke6 {[%clk 0:00:16]}  Kf8 {[%clk 0:00:53]} 76. Kf6 {[%clk 0:00:17]}  Kg8 {[%clk 0:00:54]} 77. Kg5 {[%clk 0:00:17]}  Kf7 {[%clk 0:00:55]} 78. Kxh5 {[%clk 0:00:18]}  Ke6 {[%clk 0:00:56]} 79. Kg5 {[%clk 0:00:18]}  Ke5 {[%clk 0:00:56]} 80. Kg6 {[%clk 0:00:17]}  Kd5 {[%clk 0:00:57]} 81. Bg5 {[%clk 0:00:17]}  Kc4 {[%clk 0:00:58]} 82. Bf4 {[%clk 0:00:17]}  Kd3 {[%clk 0:00:59]} 83. Kf5 {[%clk 0:00:18]}  Kc3 {[%clk 0:01:00]} 84. Ke5 {[%clk 0:00:19]}  Kd2 {[%clk 0:01:01]} 85. Kd4 {[%clk 0:00:19]}  Ke2 {[%clk 0:01:02]} 86. Ke5 {[%clk 0:00:20]}  Kf2 {[%clk 0:01:03]} 87. Kd4 {[%clk 0:00:21]}  Ke2 {[%clk 0:00:47]} 88. Kc3 {[%clk 0:00:21]}  Kd1 {[%clk 0:00:48]} 89. Kb2 {[%clk 0:00:20]}  Ke2 {[%clk 0:00:48]} 90. Kc2 {[%clk 0:00:20]}  Ke1 {[%clk 0:00:48]} 91. Kc1 {[%clk 0:00:20]}  Ke2 {[%clk 0:00:49]} 92. Bh6 {[%clk 0:00:19]}  Ke1 {[%clk 0:00:49]} 93. Kc2 {[%clk 0:00:18]}  Ke2 {[%clk 0:00:50]} 94. Kc3 {[%clk 0:00:18]}  Ke1 {[%clk 0:00:51]} 95. Kd4 {[%clk 0:00:17]}  Ke2 {[%clk 0:00:52]} 96. Ke5 {[%clk 0:00:17]}  Ke1 {[%clk 0:00:53]} 97. Kf4 {[%clk 0:00:18]}  Ke2 {[%clk 0:00:54]} 98. Bg7 {[%clk 0:00:18]}  Ke1 {[%clk 0:00:55]} 99. Bc3+ {[%clk 0:00:19]}  Ke2 {[%clk 0:00:56]} 100. Ba5 {[%clk 0:00:19]}  Kf1 {[%clk 0:00:55]} 101. Ke5 {[%clk 0:00:17]}  Ke2 {[%clk 0:00:56]} 102. Bb6 {[%clk 0:00:15]}  Kf1 {[%clk 0:00:57]} 103. Kd4 {[%clk 0:00:14]}  Ke2 {[%clk 0:00:58]} 104. Bc7 {[%clk 0:00:15]}  Kf1 {[%clk 0:00:59]} 105. Kc3 {[%clk 0:00:15]}  Ke2 {[%clk 0:01:00]} 106. Bb6 {[%clk 0:00:15]}  Kf1 {[%clk 0:01:01]} 107. Kd2 {[%clk 0:00:15]}  Kg2 {[%clk 0:00:59]} 108. Bc7 {[%clk 0:00:15]}  Kg1 {[%clk 0:01:00]} 109. Ke1 {[%clk 0:00:14]}  Kg2 {[%clk 0:01:00]} 110. Bf4 {[%clk 0:00:14]}  Kg1 {[%clk 0:01:01]} 111. Be5 {[%clk 0:00:14]}  Kg2 {[%clk 0:01:02]} 112. Bf4 {[%clk 0:00:15]}  Kg1 {[%clk 0:01:03]} 113. Be5 {[%clk 0:00:16]}  Kg2 {[%clk 0:01:04]} 114. Bf4 {[%clk 0:00:17]} 1/2-1/2


[Site "https://www.chess.com"]

[Event "Titled Tuesday Blitz December 7 2021"]
[White "Donchenko, Alexander"]
[Black "Kosteniuk, Alexandra"]
[WhiteFideId "24603295"]
[BlackFideId "4128125"]
[WhiteElo "2494"]
[BlackElo "2475"]
[Result "0-1"]
[Round "10"]
[TimeControl "180+1"]
[Date "2021.12.07"]
[WhiteClock "0:00:32"]
[BlackClock "0:00:19"]

1. e4 {[%clk 0:03:00]}  e5 {[%clk 0:02:59]} 2. Nf3 {[%clk 0:03:00]}  Nf6 {[%clk 0:02:59]} 3. d4 {[%clk 0:02:58]}  Nxe4 {[%clk 0:02:59]} 4. Bd3 {[%clk 0:02:56]}  d5 {[%clk 0:02:59]} 5. Nxe5 {[%clk 0:02:56]}  Nd7 {[%clk 0:02:59]} 6. Nxd7 {[%clk 0:02:56]}  Bxd7 {[%clk 0:03:00]} 7. Nd2 {[%clk 0:02:56]}  Nxd2 {[%clk 0:02:56]} 8. Bxd2 {[%clk 0:02:57]}  Qe7+ {[%clk 0:02:53]} 9. Be3 {[%clk 0:02:55]}  Qb4+ {[%clk 0:02:53]} 10. Qd2 {[%clk 0:02:55]}  Qxd2+ {[%clk 0:02:52]} 11. Kxd2 {[%clk 0:02:56]}  Bd6 {[%clk 0:02:50]} 12. a4 {[%clk 0:02:48]}  a5 {[%clk 0:02:47]} 13. b3 {[%clk 0:02:47]}  c6 {[%clk 0:02:39]} 14. Rae1 {[%clk 0:02:43]}  Be6 {[%clk 0:02:38]} 15. f4 {[%clk 0:02:42]}  f5 {[%clk 0:02:23]} 16. g4 {[%clk 0:02:26]}  O-O {[%clk 0:02:16]} 17. g5 {[%clk 0:02:21]}  h6 {[%clk 0:01:21]} 18. h4 {[%clk 0:02:19]}  Rae8 {[%clk 0:01:04]} 19. c3 {[%clk 0:02:12]}  hxg5 {[%clk 0:00:57]} 20. hxg5 {[%clk 0:02:11]}  Kf7 {[%clk 0:00:58]} 21. Rh7 {[%clk 0:01:58]}  Rh8 {[%clk 0:00:55]} 22. Reh1 {[%clk 0:01:58]}  Rxh7 {[%clk 0:00:55]} 23. Rxh7 {[%clk 0:01:59]}  Kg6 {[%clk 0:00:46]} 24. Rh3 {[%clk 0:01:59]}  Kf7 {[%clk 0:00:46]} 25. Be2 {[%clk 0:01:56]}  Rg8 {[%clk 0:00:36]} 26. c4 {[%clk 0:01:46]}  g6 {[%clk 0:00:35]} 27. Kd3 {[%clk 0:01:32]}  Kg7 {[%clk 0:00:32]} 28. Bd2 {[%clk 0:01:18]}  Bc7 {[%clk 0:00:30]} 29. c5 {[%clk 0:01:08]}  Bd7 {[%clk 0:00:26]} 30. Bf3 {[%clk 0:01:03]}  Re8 {[%clk 0:00:26]} 31. Rh1 {[%clk 0:00:59]}  Ra8 {[%clk 0:00:21]} 32. Re1 {[%clk 0:00:55]}  Kf7 {[%clk 0:00:21]} 33. Rb1 {[%clk 0:00:55]}  Rh8 {[%clk 0:00:20]} 34. Rh1 {[%clk 0:00:55]}  Rxh1 {[%clk 0:00:17]} 35. Bxh1 {[%clk 0:00:56]}  Ke6 {[%clk 0:00:17]} 36. Bf3 {[%clk 0:00:55]}  Be8 {[%clk 0:00:17]} 37. b4 {[%clk 0:00:54]}  axb4 {[%clk 0:00:17]} 38. Bxb4 {[%clk 0:00:55]}  Bxf4 {[%clk 0:00:17]} 39. Be2 {[%clk 0:00:50]}  Bxg5 {[%clk 0:00:16]} 40. Kc3 {[%clk 0:00:51]}  Kd7 {[%clk 0:00:16]} 41. a5 {[%clk 0:00:51]}  Bf4 {[%clk 0:00:16]} 42. a6 {[%clk 0:00:51]}  bxa6 {[%clk 0:00:16]} 43. Bxa6 {[%clk 0:00:52]}  Bc7 {[%clk 0:00:16]} 44. Bd3 {[%clk 0:00:50]}  Bf7 {[%clk 0:00:16]} 45. Kd2 {[%clk 0:00:50]}  Be6 {[%clk 0:00:16]} 46. Ke2 {[%clk 0:00:48]}  g5 {[%clk 0:00:17]} 47. Bd2 {[%clk 0:00:48]}  f4 {[%clk 0:00:18]} 48. Bg6 {[%clk 0:00:45]}  g4 {[%clk 0:00:18]} 49. Bh5 {[%clk 0:00:46]}  Ke7 {[%clk 0:00:18]} 50. Kf2 {[%clk 0:00:45]}  Bd7 {[%clk 0:00:18]} 51. Kg2 {[%clk 0:00:44]}  Kf6 {[%clk 0:00:19]} 52. Kf2 {[%clk 0:00:41]}  Kf5 {[%clk 0:00:18]} 53. Bc3 {[%clk 0:00:41]}  Ke4 {[%clk 0:00:17]} 54. Bg6+ {[%clk 0:00:41]}  Bf5 {[%clk 0:00:17]} 55. Be8 {[%clk 0:00:42]}  g3+ {[%clk 0:00:18]} 56. Kg1 {[%clk 0:00:38]}  f3 {[%clk 0:00:18]} 57. Be1 {[%clk 0:00:36]}  Ke3 {[%clk 0:00:18]} 58. Bxc6 {[%clk 0:00:31]}  f2+ {[%clk 0:00:19]} 59. Bxf2+ {[%clk 0:00:31]}  gxf2+ {[%clk 0:00:19]} 60. Kg2 {[%clk 0:00:32]}  Be4+ {[%clk 0:00:19]} 61. Kf1 {[%clk 0:00:32]}  Bd3+ {[%clk 0:00:19]} 0-1


[Site "https://www.chess.com"]

[Event "Titled Tuesday Blitz December 7 2021"]
[White "Dzhaparov, Medet"]
[Black "Bloomer, Josh"]
[WhiteFideId "13803689"]
[BlackFideId "2020416"]
[WhiteElo "1702"]
[BlackElo "2432"]
[Result "1/2-1/2"]
[Round "10"]
[TimeControl "180+1"]
[Date "2021.12.07"]
[WhiteClock "0:00:05"]
[BlackClock "0:00:32"]

1. e4 {[%clk 0:03:00]}  c5 {[%clk 0:02:59]} 2. Nf3 {[%clk 0:03:00]}  d6 {[%clk 0:02:59]} 3. d4 {[%clk 0:03:00]}  cxd4 {[%clk 0:03:00]} 4. Nxd4 {[%clk 0:03:00]}  Nf6 {[%clk 0:03:00]} 5. Nc3 {[%clk 0:03:01]}  a6 {[%clk 0:03:01]} 6. Bg5 {[%clk 0:03:01]}  e6 {[%clk 0:03:01]} 7. f4 {[%clk 0:03:01]}  Be7 {[%clk 0:03:02]} 8. Qf3 {[%clk 0:03:01]}  Qc7 {[%clk 0:03:02]} 9. O-O-O {[%clk 0:03:01]}  Nbd7 {[%clk 0:03:03]} 10. g4 {[%clk 0:02:53]}  b5 {[%clk 0:03:03]} 11. Bxf6 {[%clk 0:02:29]}  Nxf6 {[%clk 0:03:04]} 12. g5 {[%clk 0:02:11]}  Nd7 {[%clk 0:03:04]} 13. a3 {[%clk 0:01:24]}  Rb8 {[%clk 0:02:56]} 14. h4 {[%clk 0:01:20]}  b4 {[%clk 0:02:51]} 15. axb4 {[%clk 0:01:18]}  Rxb4 {[%clk 0:02:52]} 16. Bh3 {[%clk 0:01:12]}  Nc5 {[%clk 0:02:39]} 17. f5 {[%clk 0:01:05]}  Qb6 {[%clk 0:02:16]} 18. fxe6 {[%clk 0:00:21]}  fxe6 {[%clk 0:02:13]} 19. Rhf1 {[%clk 0:00:20]}  Rf8 {[%clk 0:02:11]} 20. Qh5+ {[%clk 0:00:18]}  Kd8 {[%clk 0:02:04]} 21. Rxf8+ {[%clk 0:00:17]}  Bxf8 {[%clk 0:02:05]} 22. Qf7 {[%clk 0:00:17]}  Be7 {[%clk 0:02:01]} 23. Nxe6+ {[%clk 0:00:14]}  Nxe6 {[%clk 0:01:55]} 24. Bxe6 {[%clk 0:00:14]}  Bxe6 {[%clk 0:01:51]} 25. Qxe6 {[%clk 0:00:14]}  Rxb2 {[%clk 0:01:46]} 26. Qg8+ {[%clk 0:00:09]}  Kd7 {[%clk 0:01:44]} 27. Qxg7 {[%clk 0:00:07]}  Rb4 {[%clk 0:01:21]} 28. Qxe7+ {[%clk 0:00:05]}  Kxe7 {[%clk 0:01:22]} 29. Nd5+ {[%clk 0:00:05]}  Ke6 {[%clk 0:01:23]} 30. Nxb6 {[%clk 0:00:05]}  Rxb6 {[%clk 0:01:24]} 31. Rf1 {[%clk 0:00:05]}  Rb7 {[%clk 0:01:20]} 32. h5 {[%clk 0:00:03]}  Ke5 {[%clk 0:01:20]} 33. Rf5+ {[%clk 0:00:02]}  Kxe4 {[%clk 0:01:20]} 34. Ra5 {[%clk 0:00:03]}  Rb6 {[%clk 0:01:05]} 35. g6 {[%clk 0:00:02]}  hxg6 {[%clk 0:01:04]} 36. h6 {[%clk 0:00:03]}  Rb7 {[%clk 0:01:01]} 37. Rxa6 {[%clk 0:00:03]}  Ke5 {[%clk 0:01:01]} 38. Ra5+ {[%clk 0:00:03]}  Ke6 {[%clk 0:00:58]} 39. c3 {[%clk 0:00:03]}  Rh7 {[%clk 0:00:58]} 40. Rg5 {[%clk 0:00:03]}  Rxh6 {[%clk 0:00:58]} 41. Kd2 {[%clk 0:00:03]}  Kf6 {[%clk 0:00:58]} 42. Rd5 {[%clk 0:00:03]}  Ke6 {[%clk 0:00:59]} 43. c4 {[%clk 0:00:04]}  Rh2+ {[%clk 0:00:57]} 44. Ke3 {[%clk 0:00:04]}  Rh3+ {[%clk 0:00:56]} 45. Kd2 {[%clk 0:00:04]}  Rh2+ {[%clk 0:00:55]} 46. Ke3 {[%clk 0:00:04]}  Rc2 {[%clk 0:00:55]} 47. Kd3 {[%clk 0:00:04]}  Rc1 {[%clk 0:00:56]} 48. Rg5 {[%clk 0:00:04]}  Kf6 {[%clk 0:00:55]} 49. Rg2 {[%clk 0:00:05]}  Rd1+ {[%clk 0:00:54]} 50. Ke4 {[%clk 0:00:05]}  Rf1 {[%clk 0:00:53]} 51. Rd2 {[%clk 0:00:05]}  Ke6 {[%clk 0:00:52]} 52. Rg2 {[%clk 0:00:05]}  Re1+ {[%clk 0:00:50]} 53. Kd4 {[%clk 0:00:05]}  Rd1+ {[%clk 0:00:48]} 54. Ke4 {[%clk 0:00:05]}  Kf6 {[%clk 0:00:46]} 55. Rf2+ {[%clk 0:00:04]}  Kg7 {[%clk 0:00:46]} 56. Rg2 {[%clk 0:00:04]}  Re1+ {[%clk 0:00:33]} 57. Kd5 {[%clk 0:00:04]}  Rd1+ {[%clk 0:00:32]} 58. Ke6 {[%clk 0:00:04]}  Rc1 {[%clk 0:00:31]} 59. Kd5 {[%clk 0:00:04]}  Rd1+ {[%clk 0:00:31]} 60. Ke6 {[%clk 0:00:04]}  Kh6 {[%clk 0:00:30]} 61. Rh2+ {[%clk 0:00:03]}  Kg5 {[%clk 0:00:30]} 62. Rg2+ {[%clk 0:00:04]}  Kh5 {[%clk 0:00:30]} 63. Rh2+ {[%clk 0:00:04]}  Kg5 {[%clk 0:00:30]} 64. Rg2+ {[%clk 0:00:05]}  Kh6 {[%clk 0:00:31]} 65. Rh2+ {[%clk 0:00:05]}  Kg7 {[%clk 0:00:32]} 66. Rg2 {[%clk 0:00:05]} 1/2-1/2


[Site "https://www.chess.com"]

[Event "Titled Tuesday Blitz December 7 2021"]
[White "Erdogdu, Mert"]
[Black "Saraci, Nderim"]
[WhiteFideId "6301495"]
[BlackFideId "6351921"]
[WhiteElo "2485"]
[BlackElo "2479"]
[Result "0-1"]
[Round "10"]
[TimeControl "180+1"]
[Date "2021.12.07"]
[WhiteClock "0:00:08"]
[BlackClock "0:00:13"]

1. e4 {[%clk 0:03:00]}  e5 {[%clk 0:03:00]} 2. Nf3 {[%clk 0:03:00]}  Nc6 {[%clk 0:03:00]} 3. Bc4 {[%clk 0:03:00]}  Bc5 {[%clk 0:03:00]} 4. c3 {[%clk 0:02:58]}  Nf6 {[%clk 0:03:00]} 5. d3 {[%clk 0:02:58]}  O-O {[%clk 0:03:00]} 6. O-O {[%clk 0:02:58]}  a5 {[%clk 0:03:00]} 7. a4 {[%clk 0:02:58]}  d6 {[%clk 0:03:00]} 8. Bg5 {[%clk 0:02:58]}  h6 {[%clk 0:03:00]} 9. Bh4 {[%clk 0:02:58]}  Re8 {[%clk 0:02:59]} 10. Nbd2 {[%clk 0:02:57]}  Bd7 {[%clk 0:02:58]} 11. Re1 {[%clk 0:02:57]}  Be6 {[%clk 0:02:57]} 12. Bb5 {[%clk 0:02:53]}  Bd7 {[%clk 0:02:50]} 13. Nf1 {[%clk 0:02:42]}  Nb8 {[%clk 0:02:33]} 14. Bc4 {[%clk 0:02:31]}  Be6 {[%clk 0:02:28]} 15. Ne3 {[%clk 0:02:21]}  Bxe3 {[%clk 0:02:20]} 16. Rxe3 {[%clk 0:02:20]}  Bxc4 {[%clk 0:02:21]} 17. dxc4 {[%clk 0:02:20]}  Nbd7 {[%clk 0:02:21]} 18. Nd2 {[%clk 0:02:12]}  Qe7 {[%clk 0:02:19]} 19. Qc2 {[%clk 0:02:03]}  Qe6 {[%clk 0:02:18]} 20. Rd1 {[%clk 0:01:57]}  Nc5 {[%clk 0:02:14]} 21. f3 {[%clk 0:01:49]}  Rf8 {[%clk 0:02:10]} 22. Re2 {[%clk 0:01:45]}  Nh5 {[%clk 0:02:06]} 23. b3 {[%clk 0:01:31]}  Nf4 {[%clk 0:02:04]} 24. Re3 {[%clk 0:01:25]}  f5 {[%clk 0:01:52]} 25. exf5 {[%clk 0:01:24]}  Rxf5 {[%clk 0:01:52]} 26. Bg3 {[%clk 0:01:24]}  Qf7 {[%clk 0:01:50]} 27. Ne4 {[%clk 0:01:21]}  Nfe6 {[%clk 0:01:49]} 28. Nf2 {[%clk 0:01:12]}  Ng5 {[%clk 0:01:40]} 29. Bh4 {[%clk 0:01:01]}  Nge6 {[%clk 0:01:36]} 30. Kh1 {[%clk 0:00:58]}  Rf8 {[%clk 0:01:35]} 31. b4 {[%clk 0:00:56]}  Nd7 {[%clk 0:01:32]} 32. Ne4 {[%clk 0:00:52]}  b6 {[%clk 0:01:29]} 33. Bg3 {[%clk 0:00:48]}  Ng5 {[%clk 0:01:26]} 34. Nxg5 {[%clk 0:00:47]}  Rxg5 {[%clk 0:01:26]} 35. Qe4 {[%clk 0:00:45]}  Nf6 {[%clk 0:01:20]} 36. Qc6 {[%clk 0:00:42]}  Nh5 {[%clk 0:01:12]} 37. Bh4 {[%clk 0:00:41]}  Rg6 {[%clk 0:01:08]} 38. Re4 {[%clk 0:00:31]}  Rxg2 {[%clk 0:01:02]} 39. Rxe5 {[%clk 0:00:22]}  Rxh2+ {[%clk 0:00:44]} 40. Kxh2 {[%clk 0:00:22]}  Qf4+ {[%clk 0:00:44]} 41. Kg2 {[%clk 0:00:22]}  dxe5 {[%clk 0:00:38]} 42. Qe4 {[%clk 0:00:21]}  Qf7 {[%clk 0:00:28]} 43. Rd8 {[%clk 0:00:19]}  Nf4+ {[%clk 0:00:25]} 44. Kf2 {[%clk 0:00:18]}  Rxd8 {[%clk 0:00:23]} 45. Bxd8 {[%clk 0:00:18]}  Ne6 {[%clk 0:00:24]} 46. Bh4 {[%clk 0:00:17]}  axb4 {[%clk 0:00:24]} 47. cxb4 {[%clk 0:00:17]}  Nd4 {[%clk 0:00:24]} 48. a5 {[%clk 0:00:16]}  Qxc4 {[%clk 0:00:23]} 49. Qxe5 {[%clk 0:00:13]}  Qc2+ {[%clk 0:00:21]} 50. Kf1 {[%clk 0:00:11]}  Qd1+ {[%clk 0:00:20]} 51. Be1 {[%clk 0:00:08]}  Qxf3+ {[%clk 0:00:18]} 52. Bf2 {[%clk 0:00:08]}  Qh1+ {[%clk 0:00:16]} 53. Bg1 {[%clk 0:00:08]}  Qxg1+ {[%clk 0:00:12]} 54. Kxg1 {[%clk 0:00:08]}  Nf3+ {[%clk 0:00:12]} 55. Kf2 {[%clk 0:00:08]}  Nxe5 {[%clk 0:00:13]} 56. a6 {[%clk 0:00:08]}  Nc6 {[%clk 0:00:13]} 0-1


[Site "https://www.chess.com"]

[Event "Titled Tuesday Blitz December 7 2021"]
[White "Gabdushev, Ruslan"]
[Black "Mickiewicz, Piotr"]
[WhiteFideId "4137833"]
[BlackFideId "1114891"]
[WhiteElo "2312"]
[BlackElo "2266"]
[Result "1-0"]
[Round "10"]
[TimeControl "180+1"]
[Date "2021.12.07"]
[WhiteClock "0:00:06"]
[BlackClock "0:00:08"]

1. c4 {[%clk 0:03:00]}  g6 {[%clk 0:02:58]} 2. Nc3 {[%clk 0:02:59]}  Bg7 {[%clk 0:02:59]} 3. g3 {[%clk 0:02:59]}  d6 {[%clk 0:03:00]} 4. Bg2 {[%clk 0:03:00]}  Nf6 {[%clk 0:03:00]} 5. e4 {[%clk 0:03:00]}  O-O {[%clk 0:03:01]} 6. Nge2 {[%clk 0:03:00]}  c5 {[%clk 0:03:01]} 7. O-O {[%clk 0:02:59]}  Nc6 {[%clk 0:03:02]} 8. h3 {[%clk 0:02:58]}  Ne8 {[%clk 0:02:55]} 9. a3 {[%clk 0:02:56]}  Nc7 {[%clk 0:02:56]} 10. Rb1 {[%clk 0:02:56]}  a5 {[%clk 0:02:55]} 11. d3 {[%clk 0:02:53]}  Ne6 {[%clk 0:02:55]} 12. Kh2 {[%clk 0:02:52]}  Ned4 {[%clk 0:02:49]} 13. Nxd4 {[%clk 0:02:50]}  Nxd4 {[%clk 0:02:45]} 14. Bd2 {[%clk 0:02:44]}  Bd7 {[%clk 0:02:36]} 15. b4 {[%clk 0:02:39]}  axb4 {[%clk 0:02:37]} 16. axb4 {[%clk 0:02:39]}  Bc6 {[%clk 0:02:36]} 17. Be3 {[%clk 0:02:27]}  e6 {[%clk 0:02:35]} 18. Ne2 {[%clk 0:02:24]}  Ra2 {[%clk 0:02:30]} 19. Nxd4 {[%clk 0:02:18]}  Bxd4 {[%clk 0:02:29]} 20. Bxd4 {[%clk 0:02:12]}  cxd4 {[%clk 0:02:30]} 21. Qc1 {[%clk 0:02:06]}  e5 {[%clk 0:02:28]} 22. Rb2 {[%clk 0:02:05]}  Ra3 {[%clk 0:02:27]} 23. Qd2 {[%clk 0:02:00]}  Kg7 {[%clk 0:02:18]} 24. f4 {[%clk 0:01:55]}  Qa8 {[%clk 0:02:12]} 25. h4 {[%clk 0:01:40]}  Rc3 {[%clk 0:02:01]} 26. Ra2 {[%clk 0:01:33]}  Rxd3 {[%clk 0:01:59]} 27. Qf2 {[%clk 0:01:13]}  Qd8 {[%clk 0:01:58]} 28. h5 {[%clk 0:01:09]}  f6 {[%clk 0:01:43]} 29. Rc1 {[%clk 0:00:36]}  Re3 {[%clk 0:01:37]} 30. c5 {[%clk 0:00:32]}  Bxe4 {[%clk 0:01:30]} 31. Bxe4 {[%clk 0:00:26]}  Rxe4 {[%clk 0:01:31]} 32. Ra7 {[%clk 0:00:26]}  Rf7 {[%clk 0:01:29]} 33. Qf3 {[%clk 0:00:20]}  d5 {[%clk 0:01:23]} 34. c6 {[%clk 0:00:16]}  bxc6 {[%clk 0:00:58]} 35. h6+ {[%clk 0:00:15]}  Kg8 {[%clk 0:00:57]} 36. Rxf7 {[%clk 0:00:14]}  Kxf7 {[%clk 0:00:58]} 37. fxe5 {[%clk 0:00:13]}  Rxe5 {[%clk 0:00:38]} 38. Rxc6 {[%clk 0:00:12]}  Qe7 {[%clk 0:00:37]} 39. b5 {[%clk 0:00:12]}  Re2+ {[%clk 0:00:31]} 40. Kg1 {[%clk 0:00:12]}  Qe3+ {[%clk 0:00:29]} 41. Qxe3 {[%clk 0:00:11]}  dxe3 {[%clk 0:00:30]} 42. Rc7+ {[%clk 0:00:10]}  Ke6 {[%clk 0:00:30]} 43. Rxh7 {[%clk 0:00:10]}  Rb2 {[%clk 0:00:27]} 44. Rh8 {[%clk 0:00:09]}  Ke7 {[%clk 0:00:16]} 45. h7 {[%clk 0:00:08]}  Rb1+ {[%clk 0:00:15]} 46. Kg2 {[%clk 0:00:08]}  e2 {[%clk 0:00:15]} 47. Re8+ {[%clk 0:00:08]}  Kxe8 {[%clk 0:00:15]} 48. h8=Q+ {[%clk 0:00:08]}  Kd7 {[%clk 0:00:14]} 49. Qg7+ {[%clk 0:00:08]}  Ke6 {[%clk 0:00:13]} 50. Qg8+ {[%clk 0:00:07]}  Kf5 {[%clk 0:00:12]} 51. Qxd5+ {[%clk 0:00:07]}  Kg4 {[%clk 0:00:10]} 52. Qe4+ {[%clk 0:00:08]}  Kg5 {[%clk 0:00:10]} 53. Qxb1 {[%clk 0:00:05]}  e1=N+ {[%clk 0:00:08]} 54. Qxe1 {[%clk 0:00:05]}  Kg4 {[%clk 0:00:09]} 55. Qe4+ {[%clk 0:00:05]}  Kg5 {[%clk 0:00:08]} 56. Qf4+ {[%clk 0:00:05]}  Kh5 {[%clk 0:00:08]} 57. Qh4# {[%clk 0:00:06]} 1-0


[Site "https://www.chess.com"]